[Event "Titled Tuesday Blitz May 4 2021"]
[White "Rytenko, Vsevolod"]
[Black "Sergey85Rodchenkov"]
[WhiteFideId "14133040"]
[WhiteElo "2228"]
[BlackElo "2534"]
[Result "1/2-1/2"]
[Round "05"]
[TimeControl "180+1"]
[Date "2021.05.04"]
[WhiteClock "0:00:06"]
[BlackClock "0:00:09"]

1. d4 {[%clk 0:03:00]}  Nf6 {[%clk 0:02:59]} 2. c4 {[%clk 0:03:00]}  e6 {[%clk 0:02:59]} 3. Nc3 {[%clk 0:03:01]}  Bb4 {[%clk 0:02:58]} 4. Bd2 {[%clk 0:03:01]}  c5 {[%clk 0:02:58]} 5. Nf3 {[%clk 0:03:01]}  cxd4 {[%clk 0:02:57]} 6. Nxd4 {[%clk 0:03:02]}  Nc6 {[%clk 0:02:56]} 7. e3 {[%clk 0:03:02]}  O-O {[%clk 0:02:53]} 8. a3 {[%clk 0:03:02]}  Bxc3 {[%clk 0:02:50]} 9. Bxc3 {[%clk 0:03:03]}  Ne4 {[%clk 0:02:51]} 10. Qc2 {[%clk 0:02:59]}  Nxc3 {[%clk 0:02:46]} 11. Qxc3 {[%clk 0:03:00]}  d5 {[%clk 0:02:43]} 12. cxd5 {[%clk 0:02:57]}  Qxd5 {[%clk 0:02:40]} 13. Nxc6 {[%clk 0:02:57]}  bxc6 {[%clk 0:02:38]} 14. Rd1 {[%clk 0:02:46]}  Qg5 {[%clk 0:02:21]} 15. h4 {[%clk 0:02:44]}  Qh6 {[%clk 0:02:21]} 16. g4 {[%clk 0:02:33]}  e5 {[%clk 0:02:12]} 17. g5 {[%clk 0:02:30]}  Qh5 {[%clk 0:02:08]} 18. Qxe5 {[%clk 0:02:21]}  Bg4 {[%clk 0:02:06]} 19. Rd4 {[%clk 0:02:00]}  Rad8 {[%clk 0:01:52]} 20. Bg2 {[%clk 0:01:41]}  Bf3 {[%clk 0:01:47]} 21. O-O {[%clk 0:01:14]}  Bxg2 {[%clk 0:01:43]} 22. Kxg2 {[%clk 0:01:12]}  h6 {[%clk 0:01:34]} 23. Rfd1 {[%clk 0:01:07]}  Rxd4 {[%clk 0:01:30]} 24. Rxd4 {[%clk 0:01:04]}  f6 {[%clk 0:01:05]} 25. Qe6+ {[%clk 0:00:53]}  Kh8 {[%clk 0:01:05]} 26. Rg4 {[%clk 0:00:35]}  fxg5 {[%clk 0:00:57]} 27. hxg5 {[%clk 0:00:36]}  hxg5 {[%clk 0:00:28]} 28. Rg3 {[%clk 0:00:34]}  g4 {[%clk 0:00:19]} 29. Rxg4 {[%clk 0:00:26]}  Rf6 {[%clk 0:00:17]} 30. Qe4 {[%clk 0:00:14]}  Rh6 {[%clk 0:00:14]} 31. Kf3 {[%clk 0:00:10]}  Qh1+ {[%clk 0:00:11]} 32. Ke2 {[%clk 0:00:09]}  Qc1 {[%clk 0:00:08]} 33. Qe8+ {[%clk 0:00:08]}  Kh7 {[%clk 0:00:08]} 34. Qe4+ {[%clk 0:00:09]}  Kh8 {[%clk 0:00:08]} 35. Qe8+ {[%clk 0:00:09]}  Kh7 {[%clk 0:00:08]} 36. Qe4+ {[%clk 0:00:06]}  Kh8 {[%clk 0:00:09]} 1/2-1/2


[Site "https://www.chess.com"]

[Event "Titled Tuesday Blitz May 4 2021"]
[White "Rzayev, Bahruz"]
[Black "Perez Rodriguez, Jennifer"]
[WhiteFideId "13403036"]
[BlackFideId "3507831"]
[WhiteElo "2331"]
[BlackElo "2170"]
[Result "1-0"]
[Round "05"]
[TimeControl "180+1"]
[Date "2021.05.04"]
[WhiteClock "0:00:16"]
[BlackClock "0:00:05"]

1. e4 {[%clk 0:02:56]}  e5 {[%clk 0:02:59]} 2. Nf3 {[%clk 0:02:52]}  Nc6 {[%clk 0:02:59]} 3. d4 {[%clk 0:02:53]}  exd4 {[%clk 0:02:58]} 4. Bc4 {[%clk 0:02:53]}  Nf6 {[%clk 0:02:58]} 5. O-O {[%clk 0:02:52]}  Nxe4 {[%clk 0:02:57]} 6. Re1 {[%clk 0:02:52]}  d5 {[%clk 0:02:57]} 7. Nc3 {[%clk 0:02:53]}  dxc4 {[%clk 0:02:36]} 8. Rxe4+ {[%clk 0:02:48]}  Be6 {[%clk 0:02:36]} 9. Nxd4 {[%clk 0:02:41]}  Nxd4 {[%clk 0:02:35]} 10. Rxd4 {[%clk 0:02:42]}  Bd6 {[%clk 0:02:34]} 11. Bf4 {[%clk 0:02:32]}  O-O {[%clk 0:02:31]} 12. Bxd6 {[%clk 0:02:32]}  cxd6 {[%clk 0:02:32]} 13. Rxd6 {[%clk 0:02:33]}  Qf6 {[%clk 0:02:26]} 14. Qd2 {[%clk 0:02:30]}  Rad8 {[%clk 0:02:16]} 15. Rd1 {[%clk 0:02:29]}  Rxd6 {[%clk 0:02:16]} 16. Qxd6 {[%clk 0:02:30]}  h6 {[%clk 0:02:10]} 17. Qc7 {[%clk 0:02:14]}  Qg6 {[%clk 0:02:00]} 18. Rd2 {[%clk 0:02:03]}  Qg5 {[%clk 0:01:51]} 19. Ne4 {[%clk 0:01:51]}  Qb5 {[%clk 0:01:35]} 20. c3 {[%clk 0:01:38]}  Qa4 {[%clk 0:01:16]} 21. a3 {[%clk 0:01:31]}  Qb5 {[%clk 0:01:08]} 22. f3 {[%clk 0:01:12]}  a5 {[%clk 0:01:00]} 23. Qc5 {[%clk 0:01:09]}  Qa6 {[%clk 0:00:53]} 24. Rd6 {[%clk 0:01:07]}  Qa8 {[%clk 0:00:48]} 25. Qc7 {[%clk 0:01:04]}  b5 {[%clk 0:00:44]} 26. Rb6 {[%clk 0:00:57]}  Qd5 {[%clk 0:00:38]} 27. Qd6 {[%clk 0:00:53]}  Rd8 {[%clk 0:00:32]} 28. Qxd5 {[%clk 0:00:42]}  Rxd5 {[%clk 0:00:32]} 29. Kf2 {[%clk 0:00:40]}  Bf5 {[%clk 0:00:24]} 30. Ke3 {[%clk 0:00:35]}  Kf8 {[%clk 0:00:17]} 31. Nd6 {[%clk 0:00:27]}  Bd7 {[%clk 0:00:15]} 32. Ne4 {[%clk 0:00:22]}  Bf5 {[%clk 0:00:14]} 33. Rb7 {[%clk 0:00:20]}  Bxe4 {[%clk 0:00:11]} 34. Kxe4 {[%clk 0:00:20]}  Rg5 {[%clk 0:00:09]} 35. g4 {[%clk 0:00:20]}  Rc5 {[%clk 0:00:09]} 36. Kd4 {[%clk 0:00:18]}  Rc6 {[%clk 0:00:05]} 37. Rxb5 {[%clk 0:00:18]}  Rd6+ {[%clk 0:00:05]} 38. Kxc4 {[%clk 0:00:18]}  Rd2 {[%clk 0:00:04]} 39. b4 {[%clk 0:00:17]}  axb4 {[%clk 0:00:04]} 40. axb4 {[%clk 0:00:17]}  Rxh2 {[%clk 0:00:05]} 41. Re5 {[%clk 0:00:16]} 1-0


[Site "https://www.chess.com"]

[Event "Titled Tuesday Blitz May 4 2021"]
[White "Senthil Maran K"]
[Black "Kopjonkin, Kirill"]
[WhiteFideId "25035681"]
[BlackFideId "24140090"]
[WhiteElo "2194"]
[BlackElo "2224"]
[Result "1-0"]
[Round "05"]
[TimeControl "180+1"]
[Date "2021.05.04"]
[WhiteClock "0:00:23"]
[BlackClock "0:00:59"]

1. d4 {[%clk 0:03:00]}  Nf6 {[%clk 0:02:59]} 2. c4 {[%clk 0:02:49]}  g6 {[%clk 0:03:00]} 3. g3 {[%clk 0:02:47]}  Bg7 {[%clk 0:03:00]} 4. Bg2 {[%clk 0:02:46]}  O-O {[%clk 0:03:01]} 5. Nf3 {[%clk 0:02:46]}  d6 {[%clk 0:03:01]} 6. O-O {[%clk 0:02:46]}  Nc6 {[%clk 0:03:02]} 7. Nc3 {[%clk 0:02:46]}  e5 {[%clk 0:03:02]} 8. dxe5 {[%clk 0:02:45]}  dxe5 {[%clk 0:03:03]} 9. Bg5 {[%clk 0:02:45]}  Be6 {[%clk 0:03:04]} 10. Nd5 {[%clk 0:02:44]}  Bxd5 {[%clk 0:02:46]} 11. Bxf6 {[%clk 0:02:42]}  Qxf6 {[%clk 0:02:44]} 12. cxd5 {[%clk 0:02:41]}  Nd4 {[%clk 0:02:44]} 13. e3 {[%clk 0:02:37]}  Nxf3+ {[%clk 0:02:41]} 14. Qxf3 {[%clk 0:02:38]}  Qd6 {[%clk 0:02:42]} 15. Rac1 {[%clk 0:02:29]}  f5 {[%clk 0:02:42]} 16. e4 {[%clk 0:02:29]}  Rac8 {[%clk 0:02:41]} 17. Rc2 {[%clk 0:02:26]}  c5 {[%clk 0:02:37]} 18. Rd1 {[%clk 0:02:19]}  b6 {[%clk 0:02:35]} 19. Qe2 {[%clk 0:01:57]}  f4 {[%clk 0:02:35]} 20. Bh3 {[%clk 0:01:38]}  f3 {[%clk 0:02:26]} 21. Qe3 {[%clk 0:01:29]}  Rcd8 {[%clk 0:02:25]} 22. Bg4 {[%clk 0:01:27]}  Qf6 {[%clk 0:02:22]} 23. Rc3 {[%clk 0:01:22]}  h5 {[%clk 0:02:21]} 24. Bxf3 {[%clk 0:01:16]}  Kh7 {[%clk 0:02:22]} 25. Bg2 {[%clk 0:01:07]}  Rd6 {[%clk 0:02:21]} 26. Qe2 {[%clk 0:01:07]}  Bh6 {[%clk 0:02:21]} 27. Rf3 {[%clk 0:01:06]}  Qe7 {[%clk 0:02:21]} 28. Rxf8 {[%clk 0:01:05]}  Qxf8 {[%clk 0:02:22]} 29. b3 {[%clk 0:01:04]}  h4 {[%clk 0:02:17]} 30. Qg4 {[%clk 0:01:02]}  hxg3 {[%clk 0:02:16]} 31. hxg3 {[%clk 0:01:03]}  Rf6 {[%clk 0:02:16]} 32. Rf1 {[%clk 0:00:58]}  Qd8 {[%clk 0:02:16]} 33. Bf3 {[%clk 0:00:55]}  Qf8 {[%clk 0:02:12]} 34. Kg2 {[%clk 0:00:54]}  Kg7 {[%clk 0:02:05]} 35. Rh1 {[%clk 0:00:51]}  Rf7 {[%clk 0:01:55]} 36. a4 {[%clk 0:00:46]}  Bd2 {[%clk 0:01:46]} 37. Qh4 {[%clk 0:00:32]}  Qg8 {[%clk 0:01:35]} 38. Bg4 {[%clk 0:00:27]}  Rf6 {[%clk 0:01:03]} 39. Be6 {[%clk 0:00:22]}  Rxe6 {[%clk 0:01:00]} 40. dxe6 {[%clk 0:00:23]}  Qxe6 {[%clk 0:01:01]} 41. Qh8+ {[%clk 0:00:22]}  Kf7 {[%clk 0:00:59]} 42. Rh7# {[%clk 0:00:23]} 1-0


[Site "https://www.chess.com"]

[Event "Titled Tuesday Blitz May 4 2021"]
[White "Serikbay, Assel"]
[Black "Von Buelow, Georg"]
[WhiteFideId "13706799"]
[BlackFideId "4620658"]
[WhiteElo "2044"]
[BlackElo "2197"]
[Result "0-1"]
[Round "05"]
[TimeControl "180+1"]
[Date "2021.05.04"]
[WhiteClock "0:00:08"]
[BlackClock "0:00:25"]

1. e4 {[%clk 0:03:00]}  e5 {[%clk 0:02:56]} 2. Nf3 {[%clk 0:03:00]}  Nc6 {[%clk 0:02:55]} 3. Bb5 {[%clk 0:03:00]}  a6 {[%clk 0:02:55]} 4. Ba4 {[%clk 0:03:00]}  Nf6 {[%clk 0:02:55]} 5. O-O {[%clk 0:03:00]}  Be7 {[%clk 0:02:55]} 6. c3 {[%clk 0:02:58]}  O-O {[%clk 0:02:44]} 7. Re1 {[%clk 0:02:58]}  d6 {[%clk 0:02:42]} 8. h3 {[%clk 0:02:57]}  b5 {[%clk 0:02:38]} 9. Bb3 {[%clk 0:02:56]}  Nb8 {[%clk 0:02:37]} 10. d4 {[%clk 0:02:55]}  Nbd7 {[%clk 0:02:37]} 11. Nbd2 {[%clk 0:02:52]}  Bb7 {[%clk 0:02:37]} 12. Bc2 {[%clk 0:02:50]}  Re8 {[%clk 0:02:36]} 13. Nf1 {[%clk 0:02:49]}  Bf8 {[%clk 0:02:36]} 14. Ng3 {[%clk 0:02:49]}  g6 {[%clk 0:02:36]} 15. a4 {[%clk 0:02:42]}  c5 {[%clk 0:02:35]} 16. b3 {[%clk 0:02:23]}  Bg7 {[%clk 0:02:30]} 17. Bb2 {[%clk 0:02:22]}  Nb6 {[%clk 0:02:13]} 18. a5 {[%clk 0:01:52]}  Nbd7 {[%clk 0:02:11]} 19. d5 {[%clk 0:01:52]}  Rf8 {[%clk 0:01:57]} 20. Nh2 {[%clk 0:01:47]}  Bc8 {[%clk 0:01:54]} 21. Qd2 {[%clk 0:01:45]}  Ra7 {[%clk 0:01:52]} 22. h4 {[%clk 0:01:13]}  h5 {[%clk 0:01:42]} 23. Rf1 {[%clk 0:01:08]}  Nh7 {[%clk 0:01:32]} 24. Nf3 {[%clk 0:01:07]}  Ndf6 {[%clk 0:01:29]} 25. c4 {[%clk 0:00:44]}  b4 {[%clk 0:01:28]} 26. Qe2 {[%clk 0:00:23]}  Ng4 {[%clk 0:01:27]} 27. Bd3 {[%clk 0:00:18]}  Bf6 {[%clk 0:01:26]} 28. Nh2 {[%clk 0:00:15]}  Bxh4 {[%clk 0:01:21]} 29. Nxg4 {[%clk 0:00:09]}  Bxg4 {[%clk 0:01:20]} 30. Qd2 {[%clk 0:00:08]}  Bg5 {[%clk 0:01:17]} 31. Qc2 {[%clk 0:00:07]}  Bf4 {[%clk 0:01:12]} 32. Ne2 {[%clk 0:00:04]}  Bh6 {[%clk 0:01:06]} 33. g3 {[%clk 0:00:03]}  Bf3 {[%clk 0:01:04]} 34. Rfe1 {[%clk 0:00:03]}  h4 {[%clk 0:01:03]} 35. Nc1 {[%clk 0:00:02]}  Qg5 {[%clk 0:01:00]} 36. Be2 {[%clk 0:00:01]}  Bxe2 {[%clk 0:00:37]} 37. Qxe2 {[%clk 0:00:02]}  hxg3 {[%clk 0:00:36]} 38. Qf3 {[%clk 0:00:03]}  gxf2+ {[%clk 0:00:36]} 39. Kxf2 {[%clk 0:00:04]}  Qh4+ {[%clk 0:00:32]} 40. Qg3 {[%clk 0:00:04]}  Bg5 {[%clk 0:00:29]} 41. Qxh4 {[%clk 0:00:04]}  Bxh4+ {[%clk 0:00:29]} 42. Ke2 {[%clk 0:00:05]}  Bxe1 {[%clk 0:00:29]} 43. Kxe1 {[%clk 0:00:05]}  Nf6 {[%clk 0:00:29]} 44. Ne2 {[%clk 0:00:06]}  Nxe4 {[%clk 0:00:29]} 45. Kd1 {[%clk 0:00:06]}  f6 {[%clk 0:00:28]} 46. Kc2 {[%clk 0:00:07]}  Rh7 {[%clk 0:00:27]} 47. Rg1 {[%clk 0:00:07]}  Kf7 {[%clk 0:00:27]} 48. Rf1 {[%clk 0:00:07]}  Rh2 {[%clk 0:00:26]} 49. Re1 {[%clk 0:00:07]}  Ng3 {[%clk 0:00:25]} 50. Kd2 {[%clk 0:00:08]} 0-1


[Site "https://www.chess.com"]

[Event "Titled Tuesday Blitz May 4 2021"]
[White "Shahinyan, David"]
[Black "Efremov, Vladislav"]
[WhiteFideId "13304380"]
[BlackFideId "44159935"]
[WhiteElo "2372"]
[BlackElo "2022"]
[Result "1-0"]
[Round "05"]
[TimeControl "180+1"]
[Date "2021.05.04"]
[WhiteClock "0:01:34"]
[BlackClock "0:01:34"]

1. e4 {[%clk 0:02:05]}  c5 {[%clk 0:02:57]} 2. Nc3 {[%clk 0:02:05]}  e6 {[%clk 0:02:56]} 3. f4 {[%clk 0:02:04]}  d5 {[%clk 0:02:54]} 4. Nf3 {[%clk 0:02:04]}  dxe4 {[%clk 0:02:46]} 5. Nxe4 {[%clk 0:02:03]}  Nf6 {[%clk 0:02:46]} 6. Nxf6+ {[%clk 0:02:03]}  Qxf6 {[%clk 0:02:47]} 7. g3 {[%clk 0:02:04]}  Be7 {[%clk 0:02:42]} 8. Bg2 {[%clk 0:02:03]}  Nc6 {[%clk 0:02:41]} 9. O-O {[%clk 0:02:03]}  O-O {[%clk 0:02:41]} 10. d3 {[%clk 0:02:03]}  Nd4 {[%clk 0:02:30]} 11. Ne5 {[%clk 0:02:00]}  Rb8 {[%clk 0:02:13]} 12. c3 {[%clk 0:01:59]}  Nf5 {[%clk 0:02:13]} 13. Qe2 {[%clk 0:01:55]}  Bd6 {[%clk 0:01:53]} 14. Bd2 {[%clk 0:01:52]}  Ne7 {[%clk 0:01:46]} 15. Be4 {[%clk 0:01:41]}  b6 {[%clk 0:01:34]} 16. Ng4 {[%clk 0:01:34]} 1-0


[Site "https://www.chess.com"]

[Event "Titled Tuesday Blitz May 4 2021"]
[White "Shankovskyi, Andrii"]
[Black "Eggleston, Thomas A"]
[WhiteFideId "14121565"]
[BlackFideId "412139"]
[WhiteElo "2269"]
[BlackElo "2174"]
[Result "0-1"]
[Round "05"]
[TimeControl "180+1"]
[Date "2021.05.04"]
[WhiteClock "0:00:51"]
[BlackClock "0:01:22"]

1. e4 {[%clk 0:03:00]}  e6 {[%clk 0:03:00]} 2. d4 {[%clk 0:02:57]}  d5 {[%clk 0:03:00]} 3. exd5 {[%clk 0:02:58]}  exd5 {[%clk 0:03:00]} 4. Bd3 {[%clk 0:02:57]}  c5 {[%clk 0:02:59]} 5. Nf3 {[%clk 0:02:52]}  Nf6 {[%clk 0:02:58]} 6. O-O {[%clk 0:02:45]}  c4 {[%clk 0:02:44]} 7. Re1+ {[%clk 0:02:41]}  Be7 {[%clk 0:02:45]} 8. Bf1 {[%clk 0:02:38]}  b5 {[%clk 0:02:41]} 9. Bg5 {[%clk 0:02:32]}  O-O {[%clk 0:02:40]} 10. a4 {[%clk 0:02:26]}  b4 {[%clk 0:02:39]} 11. Qd2 {[%clk 0:02:23]}  Ne4 {[%clk 0:02:19]} 12. Bxe7 {[%clk 0:02:07]}  Qxe7 {[%clk 0:02:02]} 13. Qf4 {[%clk 0:02:03]}  Nc6 {[%clk 0:01:54]} 14. Nfd2 {[%clk 0:01:31]}  Nxd4 {[%clk 0:01:45]} 15. Nxe4 {[%clk 0:01:25]}  Nxc2 {[%clk 0:01:43]} 16. Nbd2 {[%clk 0:00:56]}  Nxa1 {[%clk 0:01:28]} 17. Rxa1 {[%clk 0:00:56]}  dxe4 {[%clk 0:01:27]} 18. Bxc4 {[%clk 0:00:54]}  Bb7 {[%clk 0:01:24]} 19. b3 {[%clk 0:00:51]}  Rad8 {[%clk 0:01:22]} 0-1


[Site "https://www.chess.com"]

[Event "Titled Tuesday Blitz May 4 2021"]
[White "Shapkin, Anatoliy"]
[Black "Przybylski, Wojciech"]
[WhiteFideId "34108332"]
[BlackFideId "1117599"]
[WhiteElo "2221"]
[BlackElo "2317"]
[Result "1-0"]
[Round "05"]
[TimeControl "180+1"]
[Date "2021.05.04"]
[WhiteClock "0:01:55"]
[BlackClock "0:00:35"]

1. d4 {[%clk 0:02:57]}  Nf6 {[%clk 0:01:55]} 2. Nf3 {[%clk 0:02:57]}  d5 {[%clk 0:01:52]} 3. Bf4 {[%clk 0:02:56]}  Bf5 {[%clk 0:01:49]} 4. e3 {[%clk 0:02:57]}  c6 {[%clk 0:01:45]} 5. c4 {[%clk 0:02:55]}  e6 {[%clk 0:01:38]} 6. Nc3 {[%clk 0:02:54]}  Nbd7 {[%clk 0:01:38]} 7. Qb3 {[%clk 0:02:51]}  Qb6 {[%clk 0:01:36]} 8. c5 {[%clk 0:02:46]}  Qxb3 {[%clk 0:01:35]} 9. axb3 {[%clk 0:02:47]}  a6 {[%clk 0:01:35]} 10. b4 {[%clk 0:02:47]}  Rc8 {[%clk 0:01:33]} 11. h3 {[%clk 0:02:45]}  h6 {[%clk 0:01:30]} 12. Nd2 {[%clk 0:02:46]}  Be7 {[%clk 0:01:24]} 13. Nb3 {[%clk 0:02:46]}  Bd8 {[%clk 0:01:24]} 14. Na5 {[%clk 0:02:46]}  Bxa5 {[%clk 0:01:23]} 15. bxa5 {[%clk 0:02:47]}  e5 {[%clk 0:01:11]} 16. Bh2 {[%clk 0:02:43]}  exd4 {[%clk 0:01:10]} 17. exd4 {[%clk 0:02:44]}  O-O {[%clk 0:01:08]} 18. f3 {[%clk 0:02:43]}  Rfe8+ {[%clk 0:01:06]} 19. Kf2 {[%clk 0:02:43]}  Nf8 {[%clk 0:01:06]} 20. Ra4 {[%clk 0:02:34]}  Ne6 {[%clk 0:01:03]} 21. Rb4 {[%clk 0:02:33]}  Re7 {[%clk 0:01:02]} 22. Bd6 {[%clk 0:02:31]}  Rd7 {[%clk 0:01:01]} 23. Be2 {[%clk 0:02:28]}  Re8 {[%clk 0:00:59]} 24. g4 {[%clk 0:02:27]}  Bg6 {[%clk 0:00:53]} 25. h4 {[%clk 0:02:26]}  Red8 {[%clk 0:00:46]} 26. Ra1 {[%clk 0:02:23]}  Ne8 {[%clk 0:00:45]} 27. Bg3 {[%clk 0:02:13]}  h5 {[%clk 0:00:44]} 28. Bd1 {[%clk 0:01:58]}  f5 {[%clk 0:00:41]} 29. Be5 {[%clk 0:01:54]}  fxg4 {[%clk 0:00:40]} 30. fxg4 {[%clk 0:01:55]}  Rf7+ {[%clk 0:00:38]} 31. Kg3 {[%clk 0:01:55]}  hxg4 {[%clk 0:00:37]} 32. Bxg4 {[%clk 0:01:55]}  Nf6 {[%clk 0:00:35]} 33. Bxe6 {[%clk 0:01:55]} 1-0


[Site "https://www.chess.com"]

[Event "Titled Tuesday Blitz May 4 2021"]
[White "Shipov, Sergei"]
[Black "AldokhinIvan"]
[WhiteFideId "4113624"]
[WhiteElo "2736"]
[BlackElo "2535"]
[Result "1-0"]
[Round "05"]
[TimeControl "180+1"]
[Date "2021.05.04"]
[WhiteClock "0:00:13"]
[BlackClock "0:00:01"]

1. d4 {[%clk 0:03:00]}  Nf6 {[%clk 0:02:59]} 2. c4 {[%clk 0:03:01]}  g6 {[%clk 0:03:00]} 3. Nc3 {[%clk 0:03:01]}  Bg7 {[%clk 0:03:00]} 4. e4 {[%clk 0:03:01]}  d6 {[%clk 0:03:01]} 5. Be2 {[%clk 0:03:02]}  O-O {[%clk 0:03:01]} 6. g4 {[%clk 0:03:03]}  Nc6 {[%clk 0:03:01]} 7. d5 {[%clk 0:03:02]}  Nb4 {[%clk 0:03:00]} 8. h4 {[%clk 0:03:01]}  e6 {[%clk 0:02:55]} 9. h5 {[%clk 0:02:59]}  exd5 {[%clk 0:02:52]} 10. cxd5 {[%clk 0:02:55]}  Re8 {[%clk 0:02:50]} 11. hxg6 {[%clk 0:02:56]}  hxg6 {[%clk 0:02:40]} 12. Bg5 {[%clk 0:02:45]}  Re5 {[%clk 0:02:40]} 13. Bf4 {[%clk 0:02:39]}  Re8 {[%clk 0:02:17]} 14. f3 {[%clk 0:02:38]}  Bxg4 {[%clk 0:01:44]} 15. a3 {[%clk 0:02:35]}  Na6 {[%clk 0:01:26]} 16. Bh6 {[%clk 0:01:58]}  Bxh6 {[%clk 0:01:13]} 17. Rxh6 {[%clk 0:01:57]}  Bh5 {[%clk 0:01:04]} 18. Bxa6 {[%clk 0:01:37]}  bxa6 {[%clk 0:00:51]} 19. Qd2 {[%clk 0:01:37]}  Kg7 {[%clk 0:00:24]} 20. O-O-O {[%clk 0:01:37]}  Rh8 {[%clk 0:00:18]} 21. Rxh8 {[%clk 0:01:36]}  Qxh8 {[%clk 0:00:18]} 22. Kb1 {[%clk 0:01:27]}  Nd7 {[%clk 0:00:16]} 23. Nce2 {[%clk 0:01:26]}  Rb8 {[%clk 0:00:14]} 24. Nd4 {[%clk 0:01:15]}  Kf8 {[%clk 0:00:10]} 25. Nge2 {[%clk 0:01:13]}  Ne5 {[%clk 0:00:10]} 26. Rc1 {[%clk 0:00:56]}  Nxf3 {[%clk 0:00:10]} 27. Qe3 {[%clk 0:00:43]}  Nxd4 {[%clk 0:00:09]} 28. Nxd4 {[%clk 0:00:43]}  Qe5 {[%clk 0:00:09]} 29. Rxc7 {[%clk 0:00:43]}  g5 {[%clk 0:00:05]} 30. Rc2 {[%clk 0:00:36]}  Bg6 {[%clk 0:00:05]} 31. Nc6 {[%clk 0:00:25]}  Qxe4 {[%clk 0:00:05]} 32. Qxe4 {[%clk 0:00:25]}  Bxe4 {[%clk 0:00:05]} 33. Nxb8 {[%clk 0:00:26]}  g4 {[%clk 0:00:06]} 34. Nc6 {[%clk 0:00:25]}  g3 {[%clk 0:00:05]} 35. Nd4 {[%clk 0:00:25]}  g2 {[%clk 0:00:05]} 36. Ne2 {[%clk 0:00:25]}  f5 {[%clk 0:00:03]} 37. Kc1 {[%clk 0:00:25]}  Ke7 {[%clk 0:00:03]} 38. Rc7+ {[%clk 0:00:24]}  Kf6 {[%clk 0:00:03]} 39. Kd2 {[%clk 0:00:25]}  Ke5 {[%clk 0:00:04]} 40. Ke3 {[%clk 0:00:25]}  Kxd5 {[%clk 0:00:04]} 41. Rxa7 {[%clk 0:00:24]}  Ke5 {[%clk 0:00:04]} 42. Re7+ {[%clk 0:00:23]}  Kf6 {[%clk 0:00:04]} 43. Ra7 {[%clk 0:00:23]}  Ke5 {[%clk 0:00:04]} 44. Rxa6 {[%clk 0:00:23]}  d5 {[%clk 0:00:04]} 45. Ra5 {[%clk 0:00:22]}  f4+ {[%clk 0:00:04]} 46. Kf2 {[%clk 0:00:22]}  f3 {[%clk 0:00:04]} 47. Ng1 {[%clk 0:00:22]}  Kf4 {[%clk 0:00:04]} 48. Ra4 {[%clk 0:00:21]}  Ke5 {[%clk 0:00:04]} 49. Ra8 {[%clk 0:00:21]}  Kd4 {[%clk 0:00:03]} 50. Rc8 {[%clk 0:00:19]}  Kd3 {[%clk 0:00:03]} 51. a4 {[%clk 0:00:20]}  Kd2 {[%clk 0:00:03]} 52. a5 {[%clk 0:00:20]}  d4 {[%clk 0:00:04]} 53. Rd8 {[%clk 0:00:20]}  d3 {[%clk 0:00:04]} 54. a6 {[%clk 0:00:20]}  Kc2 {[%clk 0:00:04]} 55. b4 {[%clk 0:00:20]}  d2 {[%clk 0:00:05]} 56. b5 {[%clk 0:00:19]}  Bd3 {[%clk 0:00:04]} 57. Nxf3 {[%clk 0:00:18]}  d1=Q {[%clk 0:00:04]} 58. Ne1+ {[%clk 0:00:18]}  Kb2 {[%clk 0:00:04]} 59. Nxd3+ {[%clk 0:00:17]}  Ka3 {[%clk 0:00:04]} 60. Kxg2 {[%clk 0:00:18]}  Qe2+ {[%clk 0:00:04]} 61. Nf2 {[%clk 0:00:18]}  Qe7 {[%clk 0:00:04]} 62. Rd3+ {[%clk 0:00:18]}  Ka4 {[%clk 0:00:03]} 63. Rd5 {[%clk 0:00:17]}  Qe6 {[%clk 0:00:02]} 64. Rg5 {[%clk 0:00:16]}  Qf6 {[%clk 0:00:02]} 65. Ne4 {[%clk 0:00:15]}  Qf4 {[%clk 0:00:01]} 66. Kh3 {[%clk 0:00:13]}  Qf3+ {[%clk 0:00:01]} 67. Ng3 {[%clk 0:00:13]} 1-0


[Site "https://www.chess.com"]

[Event "Titled Tuesday Blitz May 4 2021"]
[White "Shkapenko, Pavel"]
[Black "Janaszak, Dawid"]
[WhiteFideId "4151933"]
[BlackFideId "1119206"]
[WhiteElo "2386"]
[BlackElo "2332"]
[Result "1/2-1/2"]
[Round "05"]
[TimeControl "180+1"]
[Date "2021.05.04"]
[WhiteClock "0:00:06"]
[BlackClock "0:00:10"]

1. e4 {[%clk 0:03:00]}  c5 {[%clk 0:02:53]} 2. c3 {[%clk 0:03:00]}  Nf6 {[%clk 0:02:52]} 3. e5 {[%clk 0:03:00]}  Nd5 {[%clk 0:02:52]} 4. d4 {[%clk 0:03:01]}  cxd4 {[%clk 0:02:53]} 5. cxd4 {[%clk 0:03:02]}  d6 {[%clk 0:02:53]} 6. Nf3 {[%clk 0:03:02]}  Nc6 {[%clk 0:02:53]} 7. Bc4 {[%clk 0:03:01]}  Nb6 {[%clk 0:02:52]} 8. Bb3 {[%clk 0:03:00]}  Bf5 {[%clk 0:02:50]} 9. exd6 {[%clk 0:02:41]}  e6 {[%clk 0:02:50]} 10. Nc3 {[%clk 0:02:35]}  Bxd6 {[%clk 0:02:50]} 11. O-O {[%clk 0:02:34]}  O-O {[%clk 0:02:50]} 12. Bg5 {[%clk 0:02:26]}  Be7 {[%clk 0:02:45]} 13. Be3 {[%clk 0:02:11]}  Nb4 {[%clk 0:02:36]} 14. Ne5 {[%clk 0:02:07]}  N4d5 {[%clk 0:02:29]} 15. Nxd5 {[%clk 0:02:03]}  Nxd5 {[%clk 0:02:26]} 16. Qf3 {[%clk 0:02:03]}  Bf6 {[%clk 0:02:09]} 17. Rac1 {[%clk 0:01:46]}  Bg6 {[%clk 0:01:46]} 18. Rc5 {[%clk 0:01:34]}  Bxe5 {[%clk 0:01:38]} 19. dxe5 {[%clk 0:01:34]}  Nxe3 {[%clk 0:01:38]} 20. Qxe3 {[%clk 0:01:28]}  Qb6 {[%clk 0:01:32]} 21. Rfc1 {[%clk 0:01:19]}  Rfd8 {[%clk 0:01:29]} 22. h3 {[%clk 0:01:06]}  h6 {[%clk 0:01:25]} 23. Qe1 {[%clk 0:00:42]}  Rd7 {[%clk 0:01:16]} 24. Rc8+ {[%clk 0:00:38]}  Rxc8 {[%clk 0:01:16]} 25. Rxc8+ {[%clk 0:00:39]}  Rd8 {[%clk 0:01:16]} 26. Qc3 {[%clk 0:00:33]}  Kh7 {[%clk 0:01:12]} 27. Rxd8 {[%clk 0:00:31]}  Qxd8 {[%clk 0:01:13]} 28. f4 {[%clk 0:00:30]}  Qb6+ {[%clk 0:01:10]} 29. Kh2 {[%clk 0:00:29]}  Qf2 {[%clk 0:01:08]} 30. Qf3 {[%clk 0:00:28]}  Qxb2 {[%clk 0:01:07]} 31. Qxb7 {[%clk 0:00:27]}  Qd4 {[%clk 0:01:04]} 32. Qf3 {[%clk 0:00:24]}  a5 {[%clk 0:01:04]} 33. Bd1 {[%clk 0:00:19]}  a4 {[%clk 0:01:01]} 34. Kg3 {[%clk 0:00:17]}  a3 {[%clk 0:01:01]} 35. Bb3 {[%clk 0:00:17]}  Be4 {[%clk 0:00:59]} 36. Qf2 {[%clk 0:00:17]}  Qc3+ {[%clk 0:00:56]} 37. Kh2 {[%clk 0:00:17]}  Qb2 {[%clk 0:00:54]} 38. Kg3 {[%clk 0:00:16]}  h5 {[%clk 0:00:54]} 39. h4 {[%clk 0:00:16]}  Kg6 {[%clk 0:00:52]} 40. Qf1 {[%clk 0:00:14]}  Qd2 {[%clk 0:00:49]} 41. Qf2 {[%clk 0:00:12]}  Qc3+ {[%clk 0:00:36]} 42. Kh2 {[%clk 0:00:12]}  Kh7 {[%clk 0:00:36]} 43. Kg1 {[%clk 0:00:06]}  g6 {[%clk 0:00:34]} 44. Kh2 {[%clk 0:00:06]}  Qb2 {[%clk 0:00:25]} 45. Kg3 {[%clk 0:00:05]}  Bd5 {[%clk 0:00:22]} 46. Bxd5 {[%clk 0:00:05]}  exd5 {[%clk 0:00:23]} 47. Kf3 {[%clk 0:00:05]}  d4 {[%clk 0:00:20]} 48. Qe2 {[%clk 0:00:05]}  Qc3+ {[%clk 0:00:19]} 49. Ke4 {[%clk 0:00:05]}  Qb2 {[%clk 0:00:14]} 50. Qc4 {[%clk 0:00:05]}  Qxg2+ {[%clk 0:00:13]} 51. Kxd4 {[%clk 0:00:05]}  Qf2+ {[%clk 0:00:13]} 52. Ke4 {[%clk 0:00:05]}  Qg2+ {[%clk 0:00:11]} 53. Kd4 {[%clk 0:00:05]}  Qf2+ {[%clk 0:00:10]} 54. Ke4 {[%clk 0:00:05]}  Qg2+ {[%clk 0:00:10]} 55. Kd4 {[%clk 0:00:06]} 1/2-1/2


[Site "https://www.chess.com"]